Workbook

Sheet паспорт
A1: ПАТ "УКРТРАНСГАЗ" | G1: ПАСПОРТ ФІЗИКО-ХІМІЧНИХ ПОКАЗНИКІВ ПРИРОДНОГО ГАЗУ № 191
A2: Філія "УМГ "Київтрансгаз" | G2: переданого Мринським ВУПЗГ та прийнятого ПАТ "НГВУ Чернігівнафтогаз", ПАТ "Чернігівгаз", ТОВ "ГАЗ"
A3: Мринське ВУПЗГ | G3: Маршрут № 191
A4: Вимірювальна хіміко-аналітична лабораторія
A5: Свідоцтво № 98/20 чинно до 05.11.2020 р. | K5: по газопроводу "Київ-Брянськ" | V5: за період з | X5: 2017-05-01 | Z5: по | AA5: 2017-05-31
A7: Число місяця | B7: Компонентний склад, % мол. | N7: Фізико-хімічні показники газу обчислені на основі компонентного складу, 101,325 кПа | X7: Температура точки роси за вологою (Р = 3.92 МПа), °С | Y7: Температура точки роси за вуглеводнями, °С | Z7: Вміст сірководню, г/м3 | AA7: Вміст меркаптанової сірки, г/м3 | AB7: Вміст механічних домішок, г/м3
N8: Густина абсолютна, кг/м3,при 20 °С, | O8: Температура вимірювання/згоряння при 20/25°С
B9: метан, С1 | C9: етан, С2 | D9: пропан, С3 | E9: ізо-бутан, і-С4 | F9: н-бутан, н-С4 | G9: нео-пентан, нео-С5 | H9: ізо-пентан, і-С5 | I9: н-пентан, н-С5 | J9: гексани та вищі, С6+ | K9: кисень, О2 | L9: азот, N2 | M9: діоксид вуглецю, CО2 | O9: Теплота згоряння нижча | R9: Теплота згоряння вища | U9: Число Воббе вище
O10: ккал/м³ | P10: МДж/м³ | Q10: кВт⋅год/м³ | R10: ккал/м³ | S10: МДж/м³ | T10: кВт⋅год/м³ | U10: ккал/м³ | V10: МДж/м³ | W10: кВт⋅год/м³
A11: 1 | O11: 8254.5143 | P11: 34.56 | Q11: 9.6 | R11: 9138.2441 | S11: 38.26 | T11: 10.6278 | AC11: =SUM(B11:M11)+$K$42+$N$42 -> 0
A12: 2 | B12: 89.3623 | C12: 5.5336 | D12: 1.1359 | E12: 0.1199 | F12: 0.1875 | G12: 0.0046 | H12: 0.0515 | I12: 0.0425 | J12: 0.0674 | K12: 0.0063 | L12: 1.7027 | M12: 1.7858 | N12: 0.7531 | O12: 8292.7296 | P12: 34.72 | Q12: 9.6444 | R12: 9181.2364 | S12: 38.44 | T12: 10.6778 | U12: 11610 | V12: 48.61 | W12: 13.5028 | X12: -8.1 | Y12: -12.6 | AC12: 100
A13: 3 | O13: 8292.7296 | P13: 34.72 | Q13: 9.6444 | R13: 9181.2364 | S13: 38.44 | T13: 10.6778 | AC13: 0 | AD13: =IF(AC13=100,"ОК"," ") -> 
A14: 4 | O14: 8292.7296 | P14: 34.72 | Q14: 9.6444 | R14: 9181.2364 | S14: 38.44 | T14: 10.6778 | AC14: 0 | AD14: =IF(AC14=100,"ОК"," ") -> 
A15: 5 | O15: 8292.7296 | P15: 34.72 | Q15: 9.6444 | R15: 9181.2364 | S15: 38.44 | T15: 10.6778 | AC15: 0
A16: 6 | O16: 8292.7296 | P16: 34.72 | Q16: 9.6444 | R16: 9181.2364 | S16: 38.44 | T16: 10.6778 | AC16: 0
A17: 7 | O17: 8292.7296 | P17: 34.72 | Q17: 9.6444 | R17: 9181.2364 | S17: 38.44 | T17: 10.6778 | AC17: 0
A18: 8 | O18: 8292.7296 | P18: 34.72 | Q18: 9.6444 | R18: 9181.2364 | S18: 38.44 | T18: 10.6778 | AC18: 0
A19: 9 | B19: 89.3243 | C19: 5.5312 | D19: 1.0786 | E19: 0.1199 | F19: 0.1868 | G19: 0.0033 | H19: 0.052 | I19: 0.0424 | J19: 0.0954 | K19: 0.0077 | L19: 1.7984 | M19: 1.76 | N19: 0.7534 | O19: 8290.3412 | P19: 34.71 | Q19: 9.6417 | R19: 9176.4595 | S19: 38.42 | T19: 10.6722 | U19: 11603 | V19: 48.58 | W19: 13.4944 | X19: -10.3 | Y19: -14.7 | AC19: 100 | AD19: ОК
A20: 10 | O20: 8290.3412 | P20: 34.71 | Q20: 9.6417 | R20: 9176.4595 | S20: 38.42 | T20: 10.6722 | AC20: 0
A21: 11 | O21: 8290.3412 | P21: 34.71 | Q21: 9.6417 | R21: 9176.4595 | S21: 38.42 | T21: 10.6722 | AC21: 0
A22: 12 | O22: 8290.3412 | P22: 34.71 | Q22: 9.6417 | R22: 9176.4595 | S22: 38.42 | T22: 10.6722 | AB22: 0 | AC22: 0
A23: 13 | O23: 8290.3412 | P23: 34.71 | Q23: 9.6417 | R23: 9176.4595 | S23: 38.42 | T23: 10.6722 | AC23: 0
A24: 14 | O24: 8290.3412 | P24: 34.71 | Q24: 9.6417 | R24: 9176.4595 | S24: 38.42 | T24: 10.6722 | AC24: 0
A25: 15 | O25: 8290.3412 | P25: 34.71 | Q25: 9.6417 | R25: 9176.4595 | S25: 38.42 | T25: 10.6722 | AC25: 0
A26: 16 | B26: 89.1394 | C26: 5.6526 | D26: 1.0807 | E26: 0.1188 | F26: 0.1836 | G26: 0.0069 | H26: 0.0504 | I26: 0.0416 | J26: 0.0569 | K26: 0.0057 | L26: 1.8737 | M26: 1.7897 | N26: 0.7536 | O26: 8276.0104 | P26: 34.65 | Q26: 9.625 | R26: 9162.1287 | S26: 38.36 | T26: 10.6556 | U26: 11582 | V26: 48.49 | W26: 13.4694 | X26: -14.3 | Y26: -17.6 | AC26: 100 | AD26: ОК
A27: 17 | O27: 8276.0104 | P27: 34.65 | Q27: 9.625 | R27: 9162.1287 | S27: 38.36 | T27: 10.6556 | Z27: 0.001991 | AA27: 0.00195 | AC27: 0
A28: 18 | O28: 8276.0104 | P28: 34.65 | Q28: 9.625 | R28: 9162.1287 | S28: 38.36 | T28: 10.6556 | AC28: 0
A29: 19 | O29: 8276.0104 | P29: 34.65 | Q29: 9.625 | R29: 9162.1287 | S29: 38.36 | T29: 10.6556 | AC29: 0
A30: 20 | O30: 8276.0104 | P30: 34.65 | Q30: 9.625 | R30: 9162.1287 | S30: 38.36 | T30: 10.6556 | AC30: 0 | AD30: =IF(AC30=100,"ОК"," ") -> 
A31: 21 | O31: 8276.0104 | P31: 34.65 | Q31: 9.625 | R31: 9162.1287 | S31: 38.36 | T31: 10.6556 | AC31: 0
A32: 22 | B32: 89.2644 | C32: 5.6496 | D32: 1.0685 | E32: 0.117 | F32: 0.1821 | G32: 0.0076 | H32: 0.0506 | I32: 0.0414 | J32: 0.0918 | K32: 0.0063 | L32: 1.7294 | M32: 1.7913 | N32: 0.7538 | O32: 8297.5066 | P32: 34.74 | Q32: 9.65 | R32: 9183.6249 | S32: 38.45 | T32: 10.6806 | U32: 11610 | V32: 48.61 | W32: 13.5028 | X32: -9 | Y32: -12.7 | AC32: 100 | AD32: ОК
A33: 23 | O33: 8297.5066 | P33: 34.74 | Q33: 9.65 | R33: 9183.6249 | S33: 38.45 | T33: 10.6806 | AC33: 0 | AD33: =IF(AC33=100,"ОК"," ") -> 
A34: 24 | O34: 8297.5066 | P34: 34.74 | Q34: 9.65 | R34: 9183.6249 | S34: 38.45 | T34: 10.6806 | AC34: 0
A35: 25 | O35: 8297.5066 | P35: 34.74 | Q35: 9.65 | R35: 9183.6249 | S35: 38.45 | T35: 10.6806 | AC35: 0
A36: 26 | O36: 8297.5066 | P36: 34.74 | Q36: 9.65 | R36: 9183.6249 | S36: 38.45 | T36: 10.6806 | AC36: 0
A37: 27 | O37: 8297.5066 | P37: 34.74 | Q37: 9.65 | R37: 9183.6249 | S37: 38.45 | T37: 10.6806 | AC37: 0
A38: 28 | O38: 8297.5066 | P38: 34.74 | Q38: 9.65 | R38: 9183.6249 | S38: 38.45 | T38: 10.6806 | AC38: 0
A39: 29 | B39: 88.9671 | C39: 5.5478 | D39: 1.3045 | E39: 0.1399 | F39: 0.2326 | G39: 0.0069 | H39: 0.0624 | I39: 0.0548 | J39: 0.0731 | K39: 0.0062 | L39: 1.8073 | M39: 1.7974 | N39: 0.7577 | O39: 8328.5565 | P39: 34.87 | Q39: 9.6861 | R39: 9217.0633 | S39: 38.59 | T39: 10.7194 | U39: 11620 | V39: 48.65 | W39: 13.5139 | X39: -8.7 | Y39: -11.6 | AC39: 100 | AD39: ОК
A40: 30 | O40: 8328.5565 | P40: 34.87 | Q40: 9.6861 | R40: 9217.0633 | S40: 38.59 | T40: 10.7194 | AC40: 0
A41: 31 | O41: 8328.5565 | P41: 34.87 | Q41: 9.6861 | R41: 9217.0633 | S41: 38.59 | T41: 10.7194 | AC41: 0
A42: Вміст одоранта при одоризації становить 16 г на 1 000 м³ газу | O42: =SUMPRODUCT(O11:O41,' розрахунок'!G7:G37)/' розрахунок'!G38 -> 8291.143323 | P42: =SUMPRODUCT(P11:P41,' розрахунок'!G7:G37)/' розрахунок'!G38 -> 34.71335841 | Q42: =SUMPRODUCT(Q11:Q41,' розрахунок'!G7:G37)/' розрахунок'!G38 -> 9.642600879 | R42: =SUMPRODUCT(R11:R41,' розрахунок'!G7:G37)/' розрахунок'!G38 -> 9177.833165 | S42: =SUMPRODUCT(S11:S41,' розрахунок'!G7:G37)/' розрахунок'!G38 -> 38.4257513 | T42: =SUMPRODUCT(T11:T41,' розрахунок'!G7:G37)/' розрахунок'!G38 -> 10.67383146
H43: Середньозважене значення теплоти згоряння:
B46: Начальник Мринського ВУПЗГ Гладких В.М. 01.06.2017р.
C47: Підрозділу підприємства, якому підпорядкована лабораторія | O47: прізвище | R47: підпис | V47: дата
B48: Завідувач ВХАЛ Блуд Т.В. 01.06.2017р.
C49: Лабораторія, де здійснювалось вимірювання газу | O49: прізвище | R49: підпис | V49: дата
B50: Начальник служби ГВ та М Шкура Ю. Г. 01.06.2017р.
C51: Підрозділу, відповідального за облік газу за маршрутом | O51: прізвище | R51: підпис | V51: дата

Sheet розрахунок
A2: Додаток до Паспорту фізико-хімічних показників природного газу по маршруту № 191
A4: Число місяця | B4: Теплота згоряння вища, МДж/м3 | C4: Чернігівська область | G4: Загальний обсяг газу, м3
C5: Обсяг газу переданого за добу, м3
C6: ПВВГ 124 км "Талалаївка-Мрин" | D6: ГРС Ніжин | E6: ГРС Дорогинка | F6: ГРС Коломійцівка
A7: 1 | B7: 38.26 | C7: 63996.55 | D7: 28540.19 | E7: 2501.58 | F7: 2001.95 | G7: =SUM(C7:F7) -> 97040.27
A8: 2 | B8: 38.44 | C8: 70578.36 | D8: 33570.11 | E8: 2671.33 | F8: 1912.56 | G8: =SUM(C8:F8) -> 108732.36
A9: 3 | B9: 38.44 | C9: 62215.97 | D9: 31479.56 | E9: 2540.26 | F9: 1904.36 | G9: =SUM(C9:F9) -> 98140.15
A10: 4 | B10: 38.44 | C10: 66151.69 | D10: 32741.08 | E10: 2278.37 | F10: 1769.91 | G10: 102941.05
A11: 5 | B11: 38.44 | C11: 68995.7 | D11: 31856.59 | E11: 2373.01 | F11: 1760.99 | G11: 104986.29
A12: 6 | B12: 38.44 | C12: 66578.91 | D12: 29494.88 | E12: 2232.12 | F12: 1736.31 | G12: 100042.22
A13: 7 | B13: 38.44 | C13: 59806.97 | D13: 27372.23 | E13: 1975.09 | F13: 1565.36 | G13: 90719.65
A14: 8 | B14: 38.44 | C14: 65957.5 | D14: 29968.36 | E14: 2503.91 | F14: 1676.92 | G14: 100106.69
A15: 9 | B15: 38.42 | C15: 78263.95 | D15: 41003.91 | E15: 3712.41 | F15: 2582.98 | G15: 125563.25
A16: 10 | B16: 38.42 | C16: 103542.88 | D16: 53883.97 | E16: 5518.04 | F16: 3990.49 | G16: 166935.38
A17: 11 | B17: 38.42 | C17: 118274.16 | D17: 53022.75 | E17: 5240.51 | F17: 3974.17 | G17: 180511.59
A18: 12 | B18: 38.42 | C18: 126964.9 | D18: 53828.59 | E18: 5323.15 | F18: 3685.79 | G18: 189802.43
A19: 13 | B19: 38.42 | C19: 135746.45 | D19: 62450.96 | E19: 6238.18 | F19: 4417.33 | G19: 208852.92
A20: 14 | B20: 38.42 | C20: 120479.73 | D20: 47347.94 | E20: 4376.95 | F20: 3405.7 | G20: 175610.32
A21: 15 | B21: 38.42 | C21: 85536.64 | D21: 34252.92 | E21: 2631.73 | F21: 2073.06 | G21: 124494.35
A22: 16 | B22: 38.36 | C22: 73520.75 | D22: 34386.54 | E22: 2595.95 | F22: 1840.1 | G22: 112343.34
A23: 17 | B23: 38.36 | C23: 79557.26 | D23: 40464.73 | E23: 2778.6 | F23: 2031.81 | G23: 124832.4
A24: 18 | B24: 38.36 | C24: 83093.52 | D24: 39305.63 | E24: 2854.1 | F24: 2064.63 | G24: 127317.88
A25: 19 | B25: 38.36 | C25: 79259.86 | D25: 34352.54 | E25: 2610.56 | F25: 1820.25 | G25: 118043.21
A26: 20 | B26: 38.36 | C26: 79702.9 | D26: 34697.07 | E26: 2555.31 | F26: 1889.28 | G26: 118844.56
A27: 21 | B27: 38.36 | C27: 72097.86 | D27: 33322.5 | E27: 2430.09 | F27: 1749.31 | G27: 109599.76
A28: 22 | B28: 38.45 | C28: 67913.73 | D28: 28812.91 | E28: 2026.5 | F28: 1424.5 | G28: 100177.64
A29: 23 | B29: 38.45 | C29: 59894.82 | D29: 33366.19 | E29: 1850.17 | F29: 1355.06 | G29: 96466.24
A30: 24 | B30: 38.45 | C30: 64172.15 | D30: 29332.69 | E30: 2127.67 | F30: 1401.19 | G30: 97033.7
A31: 25 | B31: 38.45 | C31: 60841.72 | D31: 31535.79 | E31: 1850.15 | F31: 1386.54 | G31: 95614.2
A32: 26 | B32: 38.45 | C32: 69215.21 | D32: 32361.51 | E32: 2337.7 | F32: 1667.88 | G32: 105582.3
A33: 27 | B33: 38.45 | C33: 61722.59 | D33: 29262.52 | E33: 2112.85 | F33: 1679.56 | G33: 94777.52
A34: 28 | B34: 38.45 | C34: 61317.06 | D34: 32941.95 | E34: 2004.77 | F34: 1456.01 | G34: 97719.79
A35: 29 | B35: 38.59 | C35: 58374.72 | D35: 30008.02 | E35: 1706.24 | F35: 1243.49 | G35: 91332.47
A36: 30 | B36: 38.59 | C36: 56892.54 | D36: 26360.35 | E36: 1670.06 | F36: 1182.25 | G36: 86105.2
A37: 31 | B37: 38.59 | C37: 54382.66 | D37: 26179.93 | E37: 1720.6 | F37: 1157.72 | G37: 83440.91
A38: Загальний обсяг газу, м3 | C38: =SUM(C7:C37) -> 2375049.71 | D38: =SUM(D7:D37) -> 1107504.91 | E38: 87347.96 | F38: =SUM(F7:F37) -> 63807.46 | G38: =SUM(G7:G37) -> 3633710.04
A39: Енергія, МДж | C39: =SUMPRODUCT(B7:B37,C7:C37) -> 91262534.99 | D39: =SUMPRODUCT(B7:B37,D7:D37) -> 42557671.75 | E39: =SUMPRODUCT(B7:B37,E7:E37) -> 3356186.143 | F39: =SUMPRODUCT(B7:B37,F7:F37) -> 2451645.417 | G39: =SUMPRODUCT(B7:B37,G7:G37) -> 139628038.3
A40: Теплота згоряння (середньозважене значення за місяць), МДж/м³ | C40: =C39/C38 -> 38.42552625 | D40: =D39/D38 -> 38.42662128 | E40: =E39/E38 -> 38.42317717 | F40: =F39/F38 -> 38.42255149 | G40: 38.4257513
A41: Теплота згоряння (середньозважене значення за місяць), ккал/м³ | C41: =C40*238.8459 -> 9177.779401 | D41: =D40*238.8459 -> 9178.040944 | E41: 9177.218333 | F41: 9177.06889 | G41: 9177.833152
A42: Теплота згоряння (середньозважене значення за місяць), кВт*год./м³ | C42: =C40/3.6 -> 10.67375729 | D42: =D40/3.6 -> 10.67406147 | E42: 10.67310477 | F42: 10.67293097 | G42: 10.67381981

Sheet додаток
A2: Додаток до Паспорту фізико-хімічних показників природного газу № 191
A4: Область | B4: ГРС, прямий споживач | C4: Cередньозважене значення вищої теплоти згоряння
C5: МДж/м³ | D5: ккал/м³ | E5: кВт*год./м³
A6: Чернігівська область | B6: ПВВГ 124 км "Талалаївка-Мрин" | C6: =' розрахунок'!C40 -> 38.42552625 | D6: =' розрахунок'!C41 -> 9177.779401 | E6: =' розрахунок'!C42 -> 10.67375729
B7: ГРС Ніжин | C7: =' розрахунок'!D40 -> 38.42662128 | D7: =' розрахунок'!D41 -> 9178.040944 | E7: =' розрахунок'!D42 -> 10.67406147
B8: ГРС Дорогинка | C8: =' розрахунок'!E40 -> 38.42317717 | D8: =' розрахунок'!E41 -> 9177.218333 | E8: =' розрахунок'!E42 -> 10.67310477
B9: ГРС Коломійцівка | C9: =' розрахунок'!F40 -> 38.42255149 | D9: =' розрахунок'!F41 -> 9177.06889 | E9: =' розрахунок'!F42 -> 10.67293097
A10: Середньозважене значення вищої теплоти згоряння по маршруту № 191 | C10: =' розрахунок'!G40 -> 38.4257513 | D10: =' розрахунок'!G41 -> 9177.833152 | E10: =' розрахунок'!G42 -> 10.67381981
A14: Начальник Мринського ВУПЗГ Гладких В.М. | F14: 01.06.2017р.
A15: Підрозділу підприємства, якому підпорядкована лабораторія | D15: прізвище | E15: підпис | F15: дата
A16: Завідувач ВХАЛ Блуд Т.В. | F16: 01.06.2017р.
A17: Лабораторія, де здійснювалось вимірювання газу | D17: прізвище | E17: підпис | F17: дата
A18: Начальник служби ГВ та М Шкура Ю.Г. | F18: 01.06.2017р.
A19: Підрозділу, відповідального за облік газу за маршрутом | D19: прізвище | E19: підпис | F19: дата

Sheet variablesList (hidden)
A1: 3 | B1: x:\gaysin | C1: 10, 11, 24, 25, 127, 128, 132, 180, 207, 215 | D1: x:\
B2: x:\Illinci
B3: x:\Talne
